[Event "56th Biel Festival MTO 2023"]
[White "Vincenti,Leonardo"]
[Black "Muthaiah AL"]
[Site "Biel"]
[Round "2.24"]
[Annotator "RC"]
[Result "0-1"]
[Date "2023.07.19"]
[WhiteElo "2117"]
[BlackElo "2445"]
[PlyCount "84"]
[TimeControl "60"]

1. e4 {[%emt 0:0:0]} c5 {[%emt 0:0:0]} 2. Nf3 {[%emt 0:0:0]} e6 {[%emt 0:0:0]} 3. c4 {[%emt 0:0:0]} Nc6 {[%emt 0:0:0]} 4. d4 {[%emt 0:0:0]} cxd4 {[%emt 0:0:0]} 5. Nxd4 {[%emt 0:0:0]} Nf6 {[%emt 0:0:0]} 6. Nc3 {[%emt 0:0:0]} Bb4 {[%emt 0:0:0]} 7. Nxc6 {[%emt 0:0:0]} bxc6 {[%emt 0:0:0]} 8. Bd3 {[%emt 0:0:0]} e5 {[%emt 0:0:0]} 9. O-O {[%emt 0:0:0]} O-O {[%emt 0:0:0]} 10. Na4 {[%emt 0:0:0]} d5 {[%emt 0:0:0]} 11. cxd5 {[%emt 0:0:0]} cxd5 {[%emt 0:0:1]} 12. exd5 {[%emt 0:0:0]} Qxd5 {[%emt 0:0:38]} 13. a3 {[%emt 0:0:0]} Be7 {[%emt 0:2:20]} 14. Nc3 {[%emt 0:0:0]} Qc6 {[%emt 0:2:50]} 15. Qe2 {[%emt 0:0:0]} Bb7 {[%emt 0:5:16]} 16. f3 {[%emt 0:0:0]} Rad8 {[%emt 0:10:43]} 17. Bg5 {[%emt 0:7:46]} h6 {[%emt 0:14:14]} 18. Bh4 {[%emt 0:1:43]} Rxd3 {[%emt 0:10:28]} 19. Qxd3 {[%emt 0:1:59]} Ba6 {[%emt 0:0:18]} 20. Qc2 {[%emt 0:6:3]} Bxf1 {[%emt 0:3:9]} 21. Rxf1 {[%emt 0:0:30]} Bc5+ {[%emt 0:11:57]} 22. Bf2 {[%emt 0:11:40]} Bd4 {[%emt 0:3:3]} 23. Rc1 {[%emt 0:2:55]} Rb8 {[%emt 0:10:31]} 24. Qd2 {[%emt 0:18:52]} Rd8 {[%emt 0:7:4]} 25. Rd1 {[%emt 0:9:1]} Rd7 {[%emt 0:2:20]} 26. Bxd4 {[%emt 0:5:23]} Rxd4 {[%emt 0:2:10]} 27. Qe2 {[%emt 0:14:31]} Rxd1+ {[%emt 0:3:51]} 28. Nxd1 {[%emt 0:1:16]} Qc1 {[%emt 0:0:17]} 29. g3 {[%emt 0:4:15]} Nd5 {[%emt 0:1:57]} 30. Qd3 {[%emt 0:5:38]} Nb6 {[%emt 0:1:17]} 31. Kg2 {[%emt 0:4:27]} Nc4 {[%emt 0:1:19]} 32. Qd8+ {[%emt 0:0:50]} Kh7 {[%emt 0:0:9]} 33. Qd3+ {[%emt 0:0:8]} g6 {[%emt 0:0:48]} 34. Qd5 {[%emt 0:1:36]} Kg8 {[%emt 0:1:46]} 35. Kh3 {[%emt 0:3:3]} Nxb2 {[%emt 0:8:38]} 36. Nxb2 {[%emt 0:0:35]} Qxb2 {[%emt 0:0:1]} 37. Qa8+ {[%emt 0:0:14]} Kg7 {[%emt 0:0:16]} 38. Qxa7 {[%emt 0:0:16]} Qe2 {[%emt 0:0:7]} 39. Qc7 {[%emt 0:6:5]} Qf1+ {[%emt 0:1:44]} 40. Kg4 {[%emt 0:1:11]} h5+ {[%emt 0:0:42]} 41. Kh4 {[%emt 0:0:0]} Qe2 {[%emt 0:0:0]} 42. Qe7 {[%emt 0:0:0]} Qxh2+ {[%emt 0:0:0]} 0-1

[Event "56th Biel Festival MTO 2023"]
[White "Erne,Raphael"]
[Black "Shlyakhtenko,Robert"]
[Site "Biel"]
[Round "2.25"]
[Annotator "ChessBase"]
[Result "0-1"]
[Date "2023.07.19"]
[WhiteElo "2077"]
[BlackElo "2401"]
[PlyCount "56"]
[TimeControl "60"]

1. c4 {[%emt 0:0:0]} e5 {[%emt 0:0:0]} 2. g3 {[%emt 0:0:0]} c6 {[%emt 0:0:0]} 3. Nf3 {[%emt 0:0:0]} e4 {[%emt 0:0:0]} 4. Nd4 {[%emt 0:0:0]} Nf6 {[%emt 0:0:0]} 5. Bg2 {[%emt 0:0:0]} Qb6 {[%emt 0:0:0]} 6. Nb3 {[%emt 0:0:0]} a5 {[%emt 0:0:0]} 7. d3 {[%emt 0:0:0]} a4 {[%emt 0:0:0]} 8. N3d2 {[%emt 0:0:0]} Bc5 {[%emt 0:0:0]} 9. O-O {[%emt 0:0:0]} e3 {[%emt 0:0:0]} 10. fxe3 {[%emt 0:0:0]} Bxe3+ {[%emt 0:0:0]} 11. Kh1 {[%emt 0:0:0]} Ng4 {[%emt 0:0:0]} 12. Ne4 {[%emt 0:18:57]} O-O {[%emt 0:0:0]} 13. h3 {[%emt 0:0:30]} d5 {[%emt 0:0:0]} 14. hxg4 {[%emt 0:10:39]} dxe4 {[%emt 0:0:0]} 15. Bxe4 {[%emt 0:1:33]} Bxg4 {[%emt 0:0:0]} 16. Bf3 {[%emt 0:2:4]} Bh3 {[%emt 0:6:19]} 17. Bg2 {[%emt 0:1:53]} Be6 {[%emt 0:8:32]} 18. Bxe3 {[%emt 0:4:18]} Qxe3 {[%emt 0:0:8]} 19. Qe1 {[%emt 0:1:7]} Nd7 {[%emt 0:1:47]} 20. Qf2 {[%emt 0:13:23]} Qe5 {[%emt 0:0:23]} 21. Nd2 {[%emt 0:8:33]} Nf6 {[%emt 0:7:15]} 22. Qf4 {[%emt 0:13:32]} Qxe2 {[%emt 0:2:17]} 23. Rae1 {[%emt 0:7:13]} Qxd3 {[%emt 0:2:23]} 24. Bf3 {[%emt 0:4:56]} Rad8 {[%emt 0:2:30]} 25. Ne4 {[%emt 0:2:57]} Nxe4 {[%emt 0:1:9]} 26. Bxe4 {[%emt 0:0:0]} Qxc4 {[%emt 0:1:8]} 27. a3 {[%emt 0:1:27]} Rd4 {[%emt 0:1:17]} 28. Qf3 {[%emt 0:0:48]} f5 {[%emt 0:1:41]} 0-1

[Event "56th Biel Festival MTO 2023"]
[White "Haimovich,Tal"]
[Black "Perkampus,Laurin"]
[Site "Biel"]
[Round "2.26"]
[Annotator "ChessBase"]
[Result "1-0"]
[Date "2023.07.19"]
[WhiteElo "2374"]
[BlackElo "2197"]
[PlyCount "59"]
[TimeControl "60"]

1. Nf3 {[%emt 0:0:0]} Nf6 {[%emt 0:0:0]} 2. d4 {[%emt 0:0:0]} g6 {[%emt 0:0:0]} 3. c4 {[%emt 0:0:0]} Bg7 {[%emt 0:0:0]} 4. e3 {[%emt 0:0:0]} O-O {[%emt 0:0:0]} 5. Be2 {[%emt 0:0:0]} c5 {[%emt 0:2:1]} 6. d5 {[%emt 0:0:0]} e6 {[%emt 0:9:35]} 7. Nc3 {[%emt 0:0:0]} exd5 {[%emt 0:4:20]} 8. cxd5 {[%emt 0:0:0]} d6 {[%emt 0:1:26]} 9. h3 {[%emt 0:0:0]} Re8 {[%emt 0:5:26]} 10. O-O {[%emt 0:15:17]} Ne4 {[%emt 0:21:54]} 11. Nxe4 {[%emt 0:4:35]} Rxe4 {[%emt 0:0:23]} 12. Bd3 {[%emt 0:2:57]} Re8 {[%emt 0:0:44]} 13. Qc2 {[%emt 0:5:13]} Na6 {[%emt 0:7:24]} 14. a3 {[%emt 0:23:34]} Nc7 {[%emt 0:1:42]} 15. e4 {[%emt 0:0:9]} b5 {[%emt 0:6:0]} 16. Qd1 {[%emt 0:0:59]} Bb7 {[%emt 0:7:25]} 17. Bg5 {[%emt 0:4:41]} Bf6 {[%emt 0:8:43]} 18. Qd2 {[%emt 0:6:55]} Bxg5 {[%emt 0:4:54]} 19. Nxg5 {[%emt 0:0:7]} Qf6 {[%emt 0:0:58]} 20. Rad1 {[%emt 0:1:41]} c4 {[%emt 0:7:40]} 21. Bb1 {[%emt 0:0:11]} Na6 {[%emt 0:1:9]} 22. f4 {[%emt 0:7:40]} Nc5 {[%emt 0:3:8]} 23. f5 {[%emt 0:0:22]} h6 {[%emt 0:3:30]} 24. fxg6 {[%emt 0:0:35]} Qxg6 {[%emt 0:0:58]} 25. Nxf7 {[%emt 0:0:41]} Kg7 {[%emt 0:3:8]} 26. Qd4+ {[%emt 0:3:3]} Kh7 {[%emt 0:0:30]} 27. e5 {[%emt 0:0:15]} Nd3 {[%emt 0:0:23]} 28. Rxd3 {[%emt 0:0:6]} dxe5 {[%emt 0:0:24]} 29. Nxe5 {[%emt 0:0:14]} Rxe5 {[%emt 0:0:20]} 30. Rg3 {[%emt 0:1:16]} 1-0

[Event "56th Biel Festival MTO 2023"]
[White "Coles,Ruben"]
[Black "Dotzer,Lukas"]
[Site "Biel"]
[Round "2.27"]
[Annotator "ChessBase"]
[Result "0-1"]
[Date "2023.07.19"]
[WhiteElo "2167"]
[BlackElo "2369"]
[PlyCount "72"]
[TimeControl "60"]

1. e4 {[%emt 0:0:0]} c5 {[%emt 0:0:0]} 2. Nf3 {[%emt 0:0:0]} e6 {[%emt 0:0:0]} 3. b3 {[%emt 0:0:0]} b6 {[%emt 0:0:0]} 4. Bb2 {[%emt 0:0:0]} Bb7 {[%emt 0:0:0]} 5. Nc3 {[%emt 0:0:0]} Nc6 {[%emt 0:0:0]} 6. Be2 {[%emt 0:0:0]} d5 {[%emt 0:0:0]} 7. exd5 {[%emt 0:0:31]} exd5 {[%emt 0:0:0]} 8. d4 {[%emt 0:0:23]} Nf6 {[%emt 0:0:0]} 9. O-O {[%emt 0:6:56]} Be7 {[%emt 0:4:1]} 10. Re1 {[%emt 0:9:10]} O-O {[%emt 0:0:45]} 11. h3 {[%emt 0:3:51]} Rc8 {[%emt 0:11:7]} 12. dxc5 {[%emt 0:11:22]} Bxc5 {[%emt 0:15:26]} 13. Na4 {[%emt 0:8:15]} Bb4 {[%emt 0:5:43]} 14. c3 {[%emt 0:6:35]} Bd6 {[%emt 0:3:42]} 15. c4 {[%emt 0:5:8]} Re8 {[%emt 0:5:15]} 16. cxd5 {[%emt 0:10:9]} Nb4 {[%emt 0:7:50]} 17. Nc3 {[%emt 0:6:51]} Rc5 {[%emt 0:7:47]} 18. Bc4 {[%emt 0:6:27]} Rxe1+ {[%emt 0:15:26]} 19. Nxe1 {[%emt 0:1:24]} Nbxd5 {[%emt 0:5:4]} 20. Nxd5 {[%emt 0:7:0]} Nxd5 {[%emt 0:8:3]} 21. Qd4 {[%emt 0:5:49]} Qg5 {[%emt 0:7:50]} 22. h4 {[%emt 0:3:58]} Qg6 {[%emt 0:2:41]} 23. h5 {[%emt 0:5:7]} Qg5 {[%emt 0:0:37]} 24. Nf3 {[%emt 0:2:22]} Qh6 {[%emt 0:0:2]} 25. Re1 {[%emt 0:0:49]} Ne7 {[%emt 0:0:50]} 26. Ne5 {[%emt 0:0:46]} Bd5 {[%emt 0:0:35]} 27. b4 {[%emt 0:0:19]} Qg5 {[%emt 0:0:38]} 28. g3 {[%emt 0:0:32]} Qxh5 {[%emt 0:0:34]} 29. Nf3 {[%emt 0:0:20]} Nf5 {[%emt 0:0:23]} 30. Re8+ {[%emt 0:0:46]} Bf8 {[%emt 0:0:2]} 31. Qd3 {[%emt 0:0:22]} Nxg3 {[%emt 0:0:51]} 32. fxg3 {[%emt 0:0:45]} Rxc4 {[%emt 0:0:9]} 33. Ne5 {[%emt 0:0:29]} Qh1+ {[%emt 0:0:38]} 34. Kf2 {[%emt 0:0:5]} Qg2+ {[%emt 0:0:47]} 35. Ke1 {[%emt 0:0:5]} Re4+ {[%emt 0:0:18]} 36. Kd1 {[%emt 0:0:20]} Qxb2 {[%emt 0:0:15]} 0-1

[Event "56th Biel Festival MTO 2023"]
[White "Rosen,Eric"]
[Black "Malli,Suvirr"]
[Site "Biel"]
[Round "2.28"]
[Annotator "ChessBase"]
[Result "0-1"]
[Date "2023.07.19"]
[WhiteElo "2344"]
[BlackElo "2094"]
[PlyCount "128"]
[TimeControl "60"]

1. d4 {[%emt 0:0:0]} d5 {[%emt 0:0:0]} 2. c4 {[%emt 0:0:0]} c6 {[%emt 0:0:0]} 3. Nd2 {[%emt 0:0:0]} Nf6 {[%emt 0:0:0]} 4. Ngf3 {[%emt 0:0:0]} e6 {[%emt 0:0:0]} 5. g3 {[%emt 0:0:0]} Nbd7 {[%emt 0:0:0]} 6. Bg2 {[%emt 0:0:0]} Bd6 {[%emt 0:0:0]} 7. O-O {[%emt 0:0:0]} O-O {[%emt 0:0:0]} 8. Qc2 {[%emt 0:0:0]} Re8 {[%emt 0:3:27]} 9. b3 {[%emt 0:0:0]} e5 {[%emt 0:10:34]} 10. cxd5 {[%emt 0:7:54]} cxd5 {[%emt 0:3:26]} 11. dxe5 {[%emt 0:1:36]} Nxe5 {[%emt 0:0:52]} 12. Bb2 {[%emt 0:0:24]} Nc6 {[%emt 0:4:9]} 13. e3 {[%emt 0:3:45]} Nb4 {[%emt 0:7:0]} 14. Qb1 {[%emt 0:4:17]} Ne4 {[%emt 0:10:37]} 15. a3 {[%emt 0:3:27]} Na6 {[%emt 0:1:21]} 16. b4 {[%emt 0:3:5]} Nc7 {[%emt 0:12:19]} 17. Nb3 {[%emt 0:10:21]} Bf5 {[%emt 0:6:12]} 18. Nbd4 {[%emt 0:3:24]} Bg6 {[%emt 0:3:35]} 19. Qa2 {[%emt 0:1:14]} Rc8 {[%emt 0:8:26]} 20. Rad1 {[%emt 0:4:41]} a6 {[%emt 0:3:2]} 21. Nh4 {[%emt 0:8:11]} Bh5 {[%emt 0:2:39]} 22. Rd3 {[%emt 0:12:24]} Bf8 {[%emt 0:3:39]} 23. Rc1 {[%emt 0:5:28]} Qd7 {[%emt 0:2:26]} 24. Ndf5 {[%emt 0:5:2]} Qb5 {[%emt 0:3:12]} 25. Bf1 {[%emt 0:2:23]} Qa4 {[%emt 0:2:14]} 26. Bh3 {[%emt 0:3:36]} Ne6 {[%emt 0:2:33]} 27. Qa1 {[%emt 0:7:20]} Rc2 {[%emt 0:1:40]} 28. Rxd5 {[%emt 0:4:26]} Qb3 {[%emt 0:3:37]} 29. Rxc2 {[%emt 0:2:2]} Qxc2 {[%emt 0:0:9]} 30. Bg2 {[%emt 0:0:49]} Qxf2+ {[%emt 0:1:34]} 31. Kh1 {[%emt 0:0:30]} Nd2 {[%emt 0:1:58]} 32. Bc3 {[%emt 0:5:6]} Nc4 {[%emt 0:0:46]} 33. Qe1 {[%emt 0:4:30]} Qxe1+ {[%emt 0:0:17]} 34. Bxe1 {[%emt 0:0:1]} g6 {[%emt 0:0:48]} 35. Nd4 {[%emt 0:1:29]} Nxe3 {[%emt 0:0:47]} 36. Rd7 {[%emt 0:0:30]} Nxd4 {[%emt 0:0:18]} 37. Rxd4 {[%emt 0:0:20]} Nc2 {[%emt 0:0:23]} 38. Re4 {[%emt 0:0:41]} Rxe4 {[%emt 0:0:25]} 39. Bxe4 {[%emt 0:0:2]} Nxe1 {[%emt 0:0:20]} 40. Kg1 {[%emt 0:0:42]} g5 {[%emt 0:4:48]} 41. Nf5 {[%emt 0:0:0]} Bf3 {[%emt 0:0:0]} 42. Bb1 {[%emt 0:0:0]} Bc6 {[%emt 0:0:0]} 43. Kf2 {[%emt 0:0:0]} Nf3 {[%emt 0:0:0]} 44. h4 {[%emt 0:0:0]} gxh4 {[%emt 0:0:0]} 45. gxh4 {[%emt 0:0:0]} Nd2 {[%emt 0:0:0]} 46. Bd3 {[%emt 0:0:0]} Ne4+ {[%emt 0:0:0]} 47. Ke3 {[%emt 0:0:0]} Nd6 {[%emt 0:0:0]} 48. Ng3 {[%emt 0:0:0]} Bh6+ {[%emt 0:0:0]} 49. Kd4 {[%emt 0:0:0]} Nb5+ {[%emt 0:0:0]} 50. Ke5 {[%emt 0:0:0]} Bg7+ {[%emt 0:0:0]} 51. Kf4 {[%emt 0:0:0]} Nxa3 {[%emt 0:0:0]} 52. Nf5 {[%emt 0:0:0]} Nb5 {[%emt 0:0:0]} 53. Ne7+ {[%emt 0:0:0]} Kh8 {[%emt 0:0:0]} 54. Bc4 {[%emt 0:3:38]} Nd6 {[%emt 0:0:0]} 55. Bxa6 {[%emt 0:0:34]} Bc3 {[%emt 0:0:16]} 56. Nxc6 {[%emt 0:7:8]} bxc6 {[%emt 0:0:25]} 57. Be2 {[%emt 0:0:41]} Bxb4 {[%emt 0:0:46]} 58. Ke5 {[%emt 0:0:2]} Kg7 {[%emt 0:1:22]} 59. h5 {[%emt 0:1:11]} Ne8 {[%emt 0:1:52]} 60. Kf5 {[%emt 0:4:13]} h6 {[%emt 0:0:26]} 61. Ke5 {[%emt 0:2:40]} c5 {[%emt 0:1:2]} 62. Kd5 {[%emt 0:0:30]} Kf6 {[%emt 0:0:29]} 63. Ke4 {[%emt 0:1:25]} Kg5 {[%emt 0:0:18]} 64. Ke5 {[%emt 0:0:20]} Ng7 {[%emt 0:0:24]} 0-1

[Event "56th Biel Festival MTO 2023"]
[White "Huston,Gus"]
[Black "Papaux,Steve"]
[Site "Biel"]
[Round "2.29"]
[Annotator "ChessBase"]
[Result "1/2-1/2"]
[Date "2023.07.19"]
[WhiteElo "2341"]
[BlackElo "2064"]
[PlyCount "89"]
[TimeControl "60"]

1. d4 {[%emt 0:0:0]} d5 {[%emt 0:0:0]} 2. c4 {[%emt 0:0:0]} c6 {[%emt 0:0:0]} 3. Nf3 {[%emt 0:0:0]} Nf6 {[%emt 0:0:0]} 4. cxd5 {[%emt 0:0:0]} cxd5 {[%emt 0:0:0]} 5. Nc3 {[%emt 0:0:0]} Nc6 {[%emt 0:0:0]} 6. Bf4 {[%emt 0:0:0]} Bf5 {[%emt 0:0:0]} 7. e3 {[%emt 0:0:0]} e6 {[%emt 0:0:0]} 8. Qb3 {[%emt 0:0:0]} Qb6 {[%emt 0:0:0]} 9. Qxb6 {[%emt 0:0:0]} axb6 {[%emt 0:0:0]} 10. Nh4 {[%emt 0:0:0]} Bg6 {[%emt 0:0:0]} 11. Nxg6 {[%emt 0:0:0]} hxg6 {[%emt 0:0:0]} 12. Bb5 {[%emt 0:0:44]} Bb4 {[%emt 0:0:0]} 13. Ke2 {[%emt 0:1:8]} Bxc3 {[%emt 0:1:20]} 14. bxc3 {[%emt 0:0:2]} Ne4 {[%emt 0:0:15]} 15. Rhc1 {[%emt 0:7:46]} g5 {[%emt 0:1:43]} 16. Bg3 {[%emt 0:5:2]} Ra3 {[%emt 0:1:9]} 17. c4 {[%emt 0:10:52]} Kd7 {[%emt 0:1:20]} 18. Rc2 {[%emt 0:8:55]} Rha8 {[%emt 0:1:44]} 19. cxd5 {[%emt 0:4:20]} exd5 {[%emt 0:0:12]} 20. Rb2 {[%emt 0:1:10]} Rxa2 {[%emt 0:2:56]} 21. Raxa2 {[%emt 0:1:26]} Rxa2 {[%emt 0:0:6]} 22. Rxa2 {[%emt 0:0:3]} Nc3+ {[%emt 0:0:5]} 23. Kd3 {[%emt 0:8:49]} Nxa2 {[%emt 0:0:14]} 24. f3 {[%emt 0:2:40]} Nab4+ {[%emt 0:2:0]} 25. Kc3 {[%emt 0:2:35]} Na6 {[%emt 0:3:4]} 26. Ba4 {[%emt 0:1:1]} Nc7 {[%emt 0:1:2]} 27. e4 {[%emt 0:4:6]} f6 {[%emt 0:4:12]} 28. Kd3 {[%emt 0:1:34]} b5 {[%emt 0:1:45]} 29. Bb3 {[%emt 0:0:7]} Ne7 {[%emt 0:1:57]} 30. Be1 {[%emt 0:0:29]} f5 {[%emt 0:14:58]} 31. Bd2 {[%emt 0:6:56]} g4 {[%emt 0:2:1]} 32. exf5 {[%emt 0:0:3]} gxf3 {[%emt 0:0:20]} 33. g4 {[%emt 0:0:1]} Nc6 {[%emt 0:2:23]} 34. Be3 {[%emt 0:0:23]} Na5 {[%emt 0:1:33]} 35. Bd1 {[%emt 0:0:10]} b4 {[%emt 0:1:31]} 36. Bxf3 {[%emt 0:0:45]} b3 {[%emt 0:0:25]} 37. Bf4 {[%emt 0:0:44]} Nc4 {[%emt 0:1:37]} 38. Bd1 {[%emt 0:12:33]} b2 {[%emt 0:1:5]} 39. Ba4+ {[%emt 0:0:2]} b5 {[%emt 0:0:28]} 40. Bc2 {[%emt 0:0:1]} Ne8 {[%emt 0:7:40]} 41. g5 {[%emt 0:50:53]} b4 {[%emt 0:33:33]} 42. Ba4+ {[%emt 0:0:0]} Ke7 {[%emt 0:0:0]} 43. Kc2 {[%emt 0:0:0]} Ned6 {[%emt 0:0:0]} 44. Bxd6+ {[%emt 0:0:0]} Nxd6 {[%emt 0:0:0]} 45. Kxb2 {[%emt 0:0:0]} 1/2-1/2

[Event "56th Biel Festival MTO 2023"]
[White "Weishaeutel,Moritz"]
[Black "Pernutz,Hans-Gerhard"]
[Site "Biel"]
[Round "2.30"]
[Annotator "RC"]
[Result "1-0"]
[Date "2023.07.19"]
[WhiteElo "2442"]
[BlackElo "2054"]
[PlyCount "83"]
[TimeControl "60"]

1. d4 {[%emt 0:0:0]} Nf6 {[%emt 0:0:0]} 2. c4 {[%emt 0:0:0]} c5 {[%emt 0:0:0]} 3. d5 {[%emt 0:0:0]} b5 {[%emt 0:0:0]} 4. cxb5 {[%emt 0:0:0]} a6 {[%emt 0:0:0]} 5. bxa6 {[%emt 0:0:0]} Bxa6 {[%emt 0:0:0]} 6. Nc3 {[%emt 0:0:0]} g6 {[%emt 0:0:0]} 7. e4 {[%emt 0:0:0]} Bxf1 {[%emt 0:0:0]} 8. Kxf1 {[%emt 0:0:0]} d6 {[%emt 0:0:0]} 9. Nf3 {[%emt 0:0:0]} Nbd7 {[%emt 0:0:0]} 10. g3 {[%emt 0:0:0]} Bg7 {[%emt 0:0:0]} 11. Kg2 {[%emt 0:0:0]} O-O {[%emt 0:0:0]} 12. a4 {[%emt 0:0:0]} Qb6 {[%emt 0:0:0]} 13. Qe2 {[%emt 0:0:0]} Qa6 {[%emt 0:0:0]} 14. Nb5 {[%emt 0:0:0]} Rfc8 {[%emt 0:0:0]} 15. Ra3 {[%emt 0:7:13]} Rab8 {[%emt 0:4:50]} 16. b3 {[%emt 0:2:56]} Ne8 {[%emt 0:1:11]} 17. Bb2 {[%emt 0:4:48]} f6 {[%emt 0:1:41]} 18. Re1 {[%emt 0:10:44]} Nc7 {[%emt 0:0:45]} 19. Nxc7 {[%emt 0:0:7]} Qxe2 {[%emt 0:0:7]} 20. Rxe2 {[%emt 0:0:3]} Rxc7 {[%emt 0:0:7]} 21. Nd2 {[%emt 0:0:49]} Ra7 {[%emt 0:7:53]} 22. a5 {[%emt 0:4:55]} Rb5 {[%emt 0:5:4]} 23. Nc4 {[%emt 0:0:36]} Ra6 {[%emt 0:9:9]} 24. f4 {[%emt 0:3:30]} Rb7 {[%emt 0:10:51]} 25. Kf1 {[%emt 0:4:32]} Kf8 {[%emt 0:12:8]} 26. Ke1 {[%emt 0:0:39]} Kf7 {[%emt 0:5:3]} 27. Kd1 {[%emt 0:0:50]} e5 {[%emt 0:0:43]} 28. fxe5 {[%emt 0:3:38]} Nxe5 {[%emt 0:4:44]} 29. Bxe5 {[%emt 0:1:26]} fxe5 {[%emt 0:0:37]} 30. Kc2 {[%emt 0:0:32]} Bf6 {[%emt 0:2:0]} 31. Kc3 {[%emt 0:4:10]} Bd8 {[%emt 0:3:34]} 32. Rb2 {[%emt 0:8:15]} Rb4 {[%emt 0:6:5]} 33. Rba2 {[%emt 0:0:49]} Ke8 {[%emt 0:2:32]} 34. Ra4 {[%emt 0:1:23]} Rb5 {[%emt 0:4:5]} 35. b4 {[%emt 0:1:8]} cxb4+ {[%emt 0:1:1]} 36. Kb3 {[%emt 0:0:4]} Bc7 {[%emt 0:7:5]} 37. Rxb4 {[%emt 0:1:22]} Rc5 {[%emt 0:0:5]} 38. Rb7 {[%emt 0:2:52]} Kd8 {[%emt 0:2:44]} 39. Kb4 {[%emt 0:1:23]} Kc8 {[%emt 0:3:39]} 40. Rb5 {[%emt 0:0:6]} Rxb5+ {[%emt 0:0:14]} 41. Kxb5 {[%emt 0:30:5]} Kb7 {[%emt 0:31:15]} 42. Rf2 {[%emt 0:0:31]} 1-0

[Event "56th Biel Festival MTO 2023"]
[White "Pham,Le Thao Nguyen"]
[Black "Ammar,Sedrani"]
[Site "Biel"]
[Round "2.31"]
[Annotator "ChessBase"]
[Result "1-0"]
[Date "2023.07.19"]
[WhiteElo "2369"]
[BlackElo "2154"]
[PlyCount "127"]
[TimeControl "60"]

1. Nf3 {[%emt 0:0:0]} d5 {[%emt 0:0:0]} 2. g3 {[%emt 0:0:0]} Nc6 {[%emt 0:0:0]} 3. d4 {[%emt 0:0:0]} Bf5 {[%emt 0:0:0]} 4. c3 {[%emt 0:0:0]} e6 {[%emt 0:0:0]} 5. Bg2 {[%emt 0:0:0]} h6 {[%emt 0:0:0]} 6. O-O {[%emt 0:0:0]} Nf6 {[%emt 0:0:0]} 7. Bf4 {[%emt 0:0:0]} Bd6 {[%emt 0:0:0]} 8. Qc1 {[%emt 0:0:0]} O-O {[%emt 0:2:10]} 9. h3 {[%emt 0:2:42]} Re8 {[%emt 0:3:46]} 10. Be5 {[%emt 0:3:53]} a5 {[%emt 0:17:6]} 11. a4 {[%emt 0:6:16]} Be4 {[%emt 0:16:41]} 12. Nbd2 {[%emt 0:3:50]} Bxe5 {[%emt 0:4:11]} 13. Nxe5 {[%emt 0:9:48]} Bxg2 {[%emt 0:3:27]} 14. Kxg2 {[%emt 0:5:8]} Qd6 {[%emt 0:3:41]} 15. f4 {[%emt 0:3:42]} Nd7 {[%emt 0:3:54]} 16. Ndf3 {[%emt 0:11:16]} f6 {[%emt 0:0:38]} 17. Nxd7 {[%emt 0:1:13]} Qxd7 {[%emt 0:0:2]} 18. Qc2 {[%emt 0:1:50]} e5 {[%emt 0:1:44]} 19. dxe5 {[%emt 0:1:44]} fxe5 {[%emt 0:0:2]} 20. f5 {[%emt 0:0:19]} e4 {[%emt 0:8:2]} 21. Nh4 {[%emt 0:1:18]} Rf8 {[%emt 0:0:58]} 22. Qd2 {[%emt 0:5:3]} Rf6 {[%emt 0:2:41]} 23. Rf4 {[%emt 0:5:3]} Rd8 {[%emt 0:1:22]} 24. Raf1 {[%emt 0:3:32]} Ne5 {[%emt 0:1:7]} 25. Qd4 {[%emt 0:2:31]} Qd6 {[%emt 0:0:55]} 26. b3 {[%emt 0:11:17]} c5 {[%emt 0:1:34]} 27. Qf2 {[%emt 0:0:42]} Qb6 {[%emt 0:3:7]} 28. Rb1 {[%emt 0:9:4]} Qc6 {[%emt 0:3:56]} 29. Kh2 {[%emt 0:1:6]} d4 {[%emt 0:0:28]} 30. Qg2 {[%emt 0:0:40]} e3 {[%emt 0:1:18]} 31. Re4 {[%emt 0:0:48]} Qd5 {[%emt 0:1:8]} 32. cxd4 {[%emt 0:1:23]} cxd4 {[%emt 0:0:3]} 33. Rd1 {[%emt 0:0:34]} Nc6 {[%emt 0:2:0]} 34. Re8+ {[%emt 0:1:20]} Kf7 {[%emt 0:0:7]} 35. Qxd5+ {[%emt 0:0:11]} Rxd5 {[%emt 0:0:11]} 36. Rxe3 {[%emt 0:0:20]} Ne7 {[%emt 0:1:32]} 37. Re4 {[%emt 0:2:15]} Nxf5 {[%emt 0:0:12]} 38. Nf3 {[%emt 0:0:45]} Rb6 {[%emt 0:7:10]} 39. g4 {[%emt 0:0:30]} Ne7 {[%emt 0:1:2]} 40. Nxd4 {[%emt 0:4:40]} Rf6 {[%emt 0:6:22]} 41. Rc1 {[%emt 0:31:56]} Nc6 {[%emt 0:33:43]} 42. Nf3 {[%emt 0:2:3]} Rfd6 {[%emt 0:0:0]} 43. Kg3 {[%emt 0:0:0]} Kg8 {[%emt 0:0:0]} 44. Rcc4 {[%emt 0:0:0]} Rd1 {[%emt 0:0:0]} 45. Rc5 {[%emt 0:0:0]} R6d5 {[%emt 0:0:0]} 46. Rb5 {[%emt 0:0:0]} Rxb5 {[%emt 0:0:0]} 47. axb5 {[%emt 0:0:0]} Nb4 {[%emt 0:0:0]} 48. Re7 {[%emt 0:0:0]} b6 {[%emt 0:0:0]} 49. Re8+ {[%emt 0:0:0]} Kf7 {[%emt 0:0:0]} 50. Rb8 {[%emt 0:0:0]} Nd5 {[%emt 0:0:0]} 51. Rb7+ {[%emt 0:0:0]} Kf8 {[%emt 0:0:0]} 52. Kf2 {[%emt 0:0:0]} Nf4 {[%emt 0:0:0]} 53. h4 {[%emt 0:0:0]} Nd5 {[%emt 0:0:0]} 54. g5 {[%emt 0:0:0]} hxg5 {[%emt 0:0:0]} 55. hxg5 {[%emt 0:0:0]} Nc3 {[%emt 0:0:0]} 56. Rxb6 {[%emt 0:0:0]} Rd5 {[%emt 0:0:0]} 57. Rb8+ {[%emt 0:0:20]} Kf7 {[%emt 0:0:0]} 58. b6 {[%emt 0:0:48]} Ne4+ {[%emt 0:0:0]} 59. Ke3 {[%emt 0:0:24]} Nxg5 {[%emt 0:0:0]} 60. b7 {[%emt 0:0:10]} Rb5 {[%emt 0:0:0]} 61. Nxg5+ {[%emt 0:0:11]} Kg6 {[%emt 0:0:0]} 62. Ne4 {[%emt 0:0:29]} Rxb3+ {[%emt 0:0:0]} 63. Kd4 {[%emt 0:0:23]} a4 {[%emt 0:0:0]} 64. Nc5 {[%emt 0:0:18]} 1-0

[Event "56th Biel Festival MTO 2023"]
[White "Karthik Rajaa"]
[Black "Ludwig,Peter"]
[Site "Biel"]
[Round "2.32"]
[Annotator "ChessBase"]
[Result "1-0"]
[Date "2023.07.19"]
[WhiteElo "2276"]
[BlackElo "2147"]
[PlyCount "83"]
[TimeControl "60"]

1. d4 {[%emt 0:0:0]} Nf6 {[%emt 0:0:0]} 2. Nf3 {[%emt 0:0:0]} e6 {[%emt 0:0:0]} 3. Bf4 {[%emt 0:0:0]} c5 {[%emt 0:0:0]} 4. e3 {[%emt 0:0:0]} Nc6 {[%emt 0:0:0]} 5. Nc3 {[%emt 0:0:0]} cxd4 {[%emt 0:0:0]} 6. exd4 {[%emt 0:0:0]} Bb4 {[%emt 0:0:19]} 7. Bd3 {[%emt 0:0:0]} Nd5 {[%emt 0:14:44]} 8. Bd2 {[%emt 0:0:0]} Bxc3 {[%emt 0:9:7]} 9. bxc3 {[%emt 0:0:0]} Qc7 {[%emt 0:0:26]} 10. c4 {[%emt 0:3:54]} Nf4 {[%emt 0:0:48]} 11. Bf1 {[%emt 0:16:45]} b6 {[%emt 0:4:48]} 12. Qc1 {[%emt 0:1:42]} Ng6 {[%emt 0:0:33]} 13. h4 {[%emt 0:2:0]} Na5 {[%emt 0:10:4]} 14. h5 {[%emt 0:1:38]} Ne7 {[%emt 0:0:37]} 15. Bxa5 {[%emt 0:5:18]} bxa5 {[%emt 0:0:7]} 16. h6 {[%emt 0:8:44]} gxh6 {[%emt 0:0:10]} 17. Qxh6 {[%emt 0:0:36]} d6 {[%emt 0:3:41]} 18. Qf6 {[%emt 0:16:12]} Rf8 {[%emt 0:5:48]} 19. Rxh7 {[%emt 0:2:33]} Nd5 {[%emt 0:0:44]} 20. Qh6 {[%emt 0:2:4]} Nb4 {[%emt 0:5:22]} 21. Bd3 {[%emt 0:9:22]} Bb7 {[%emt 0:1:44]} 22. Qxe6+ {[%emt 0:2:44]} fxe6 {[%emt 0:0:45]} 23. Rxc7 {[%emt 0:0:2]} Bxf3 {[%emt 0:1:51]} 24. gxf3 {[%emt 0:0:3]} Nxd3+ {[%emt 0:1:41]} 25. cxd3 {[%emt 0:2:5]} Rb8 {[%emt 0:3:56]} 26. O-O-O {[%emt 0:11:21]} Rxf3 {[%emt 0:0:50]} 27. Rh1 {[%emt 0:0:27]} Rxf2 {[%emt 0:0:10]} 28. Rh8+ {[%emt 0:0:13]} Rf8 {[%emt 0:0:6]} 29. Rxf8+ {[%emt 0:0:5]} Kxf8 {[%emt 0:0:6]} 30. Rxa7 {[%emt 0:0:3]} Rb4 {[%emt 0:0:41]} 31. Rxa5 {[%emt 0:0:9]} d5 {[%emt 0:0:12]} 32. a3 {[%emt 0:0:17]} Rb3 {[%emt 0:0:16]} 33. Kc2 {[%emt 0:0:17]} dxc4 {[%emt 0:0:13]} 34. dxc4 {[%emt 0:0:3]} Rh3 {[%emt 0:0:14]} 35. Ra7 {[%emt 0:0:8]} Ke8 {[%emt 0:0:48]} 36. a4 {[%emt 0:5:6]} Kd8 {[%emt 0:1:1]} 37. a5 {[%emt 0:0:10]} Ra3 {[%emt 0:1:43]} 38. a6 {[%emt 0:0:27]} Kc8 {[%emt 0:0:7]} 39. Kb2 {[%emt 0:1:2]} Rd3 {[%emt 0:0:27]} 40. Ra8+ {[%emt 0:1:27]} Kc7 {[%emt 0:0:24]} 41. Re8 {[%emt 0:30:13]} Rxd4 {[%emt 0:30:20]} 42. a7 {[%emt 0:0:7]} 1-0